[Event "*** Titled Tuesday Blitz"]
[Site "Chess.com"]
[Date "2020.11.03"]
[Round "6"]
[White "S2PAc"]
[Black "Legendinunknown"]
[Result "0-1"]
[WhiteElo "2849"]
[BlackElo "2689"]
[TimeControl "180+1"]
[EndTime "11:11:21 PST"]
[Termination "Legendinunknown won on time"]

1. d4 {[%clk 0:02:58.9]} 1... Nf6 {[%clk 0:02:56.7]} 2. g3 {[%clk 0:02:59.2]}
2... d5 {[%clk 0:02:55.4]} 3. Bg2 {[%clk 0:02:59.3]} 3... c6 {[%clk 0:02:54.4]}
4. Nf3 {[%clk 0:02:59.6]} 4... e6 {[%clk 0:02:54.4]} 5. O-O {[%clk 0:03:00]}
5... Bd6 {[%clk 0:02:54.2]} 6. c4 {[%clk 0:03:00.2]} 6... O-O {[%clk 0:02:53.5]}
7. Nc3 {[%clk 0:03:00.6]} 7... Ne4 {[%clk 0:02:52.1]} 8. Nxe4 {[%clk 0:02:40.6]}
8... dxe4 {[%clk 0:02:51.8]} 9. Nd2 {[%clk 0:02:41.1]} 9... f5 {[%clk
0:02:50.2]} 10. f3 {[%clk 0:02:41.2]} 10... exf3 {[%clk 0:02:43.3]} 11. exf3
{[%clk 0:02:35.7]} 11... e5 {[%clk 0:02:42.8]} 12. c5 {[%clk 0:02:23.5]} 12...
Bc7 {[%clk 0:02:41.8]} 13. dxe5 {[%clk 0:02:23.4]} 13... Bxe5 {[%clk 0:02:39]}
14. Nc4 {[%clk 0:02:21.7]} 14... Qd4+ {[%clk 0:02:31.8]} 15. Qxd4 {[%clk
0:02:13.2]} 15... Bxd4+ {[%clk 0:02:32.7]} 16. Be3 {[%clk 0:02:13.1]} 16...
Bxe3+ {[%clk 0:02:30.4]} 17. Nxe3 {[%clk 0:02:14]} 17... Be6 {[%clk 0:02:29.9]}
18. f4 {[%clk 0:02:09.7]} 18... Na6 {[%clk 0:02:29.4]} 19. b4 {[%clk 0:01:53.6]}
19... Rfd8 {[%clk 0:02:18.1]} 20. a3 {[%clk 0:01:50.5]} 20... Kf7 {[%clk
0:02:12.8]} 21. Rfd1 {[%clk 0:01:47.4]} 21... Nc7 {[%clk 0:02:10.1]} 22. Kf2
{[%clk 0:01:43.2]} 22... Nb5 {[%clk 0:02:08.6]} 23. a4 {[%clk 0:00:57.8]} 23...
Nc3 {[%clk 0:02:06.1]} 24. Rxd8 {[%clk 0:00:57.8]} 24... Rxd8 {[%clk 0:02:07]}
25. b5 {[%clk 0:00:58.7]} 25... Rd2+ {[%clk 0:01:59.5]} 26. Kg1 {[%clk
0:00:55.6]} 26... Re2 {[%clk 0:01:38.6]} 27. bxc6 {[%clk 0:00:53]} 27... bxc6
{[%clk 0:01:37.4]} 28. Nf1 {[%clk 0:00:41]} 28... Bd5 {[%clk 0:01:33.9]} 29.
Bxd5+ {[%clk 0:00:39.5]} 29... Nxd5 {[%clk 0:01:34.8]} 30. Rb1 {[%clk
0:00:36.1]} 30... Kf6 {[%clk 0:01:25]} 31. Rb7 {[%clk 0:00:32.3]} 31... Re7
{[%clk 0:01:17.6]} 32. Rb8 {[%clk 0:00:28.9]} 32... Nc3 {[%clk 0:01:16.3]} 33.
Rc8 {[%clk 0:00:21.3]} 33... Re6 {[%clk 0:01:14.8]} 34. a5 {[%clk 0:00:21.3]}
34... Na4 {[%clk 0:01:11.8]} 35. Rc7 {[%clk 0:00:18.6]} 35... a6 {[%clk
0:01:11.3]} 36. Nd2 {[%clk 0:00:18]} 36... Nxc5 {[%clk 0:00:57.2]} 37. Nc4
{[%clk 0:00:18.5]} 37... Nd3 {[%clk 0:00:54.5]} 38. Rd7 {[%clk 0:00:14.5]} 38...
Nc5 {[%clk 0:00:52.6]} 39. Ra7 {[%clk 0:00:13.5]} 39... Re7 {[%clk 0:00:51.4]}
40. Ra8 {[%clk 0:00:12.7]} 40... Ke6 {[%clk 0:00:47.7]} 41. Rc8 {[%clk
0:00:10.2]} 41... Kd5 {[%clk 0:00:45.6]} 42. Nb6+ {[%clk 0:00:10.3]} 42... Kd4
{[%clk 0:00:43.5]} 43. Rxc6 {[%clk 0:00:09.7]} 43... Re1+ {[%clk 0:00:41.6]} 44.
Kg2 {[%clk 0:00:09.5]} 44... Ra1 {[%clk 0:00:42.2]} 45. Rd6+ {[%clk 0:00:09.2]}
45... Ke4 {[%clk 0:00:40.1]} 46. Nc4 {[%clk 0:00:05.1]} 46... Ra4 {[%clk
0:00:36.1]} 47. Nd2+ {[%clk 0:00:04.1]} 47... Ke3 {[%clk 0:00:35.1]} 48. Nf1+
{[%clk 0:00:04.1]} 48... Ke2 {[%clk 0:00:35]} 49. Rd5 {[%clk 0:00:01]} 49... Nd3
{[%clk 0:00:29.6]} 50. h4 {[%clk 0:00:01.6]} 50... Ra1 {[%clk 0:00:28.4]} 51.
Nh2 {[%clk 0:00:01.7]} 51... Ne1+ {[%clk 0:00:24]} 52. Kh3 {[%clk 0:00:01.9]}
52... g6 {[%clk 0:00:24.6]} 53. h5 {[%clk 0:00:02.2]} 53... Ra3 {[%clk 0:00:21]}
54. h6 {[%clk 0:00:02.4]} 54... Nd3 {[%clk 0:00:19.8]} 55. Rd7 {[%clk
0:00:02.3]} 55... Nxf4+ {[%clk 0:00:19.7]} 56. Kh4 {[%clk 0:00:02.2]} 56... Ne6
{[%clk 0:00:19]} 57. Re7 {[%clk 0:00:01.9]} 57... Re3 {[%clk 0:00:17.7]} 58.
Rxh7 {[%clk 0:00:02.1]} 58... Kf2 {[%clk 0:00:16.9]} 59. g4 {[%clk 0:00:01.5]}
59... f4 {[%clk 0:00:15]} 60. g5 {[%clk 0:00:01.3]} 60... Kg2 {[%clk 0:00:14.9]}
0-1

[Event "*** Titled Tuesday Blitz"]
[Site "Chess.com"]
[Date "2020.11.03"]
[Round "6"]
[White "vugarrasulov"]
[Black "Natalya_Buksa"]
[Result "1-0"]
[WhiteElo "2850"]
[BlackElo "2537"]
[TimeControl "180+1"]
[EndTime "11:11:26 PST"]
[Termination "vugarrasulov won by resignation"]

1. g3 {[%clk 0:03:00.9]} 1... d5 {[%clk 0:02:57.9]} 2. Bg2 {[%clk 0:03:01.8]}
2... Nf6 {[%clk 0:02:58]} 3. c4 {[%clk 0:03:01.6]} 3... e6 {[%clk 0:02:58.2]} 4.
Nf3 {[%clk 0:03:00.5]} 4... Be7 {[%clk 0:02:58.7]} 5. O-O {[%clk 0:03:01]} 5...
O-O {[%clk 0:02:59.2]} 6. b3 {[%clk 0:03:01.2]} 6... c5 {[%clk 0:02:58.5]} 7.
cxd5 {[%clk 0:03:01.2]} 7... Nxd5 {[%clk 0:02:57.4]} 8. Bb2 {[%clk 0:03:01.1]}
8... Nc6 {[%clk 0:02:58]} 9. d4 {[%clk 0:03:01]} 9... cxd4 {[%clk 0:02:43.5]}
10. Nxd4 {[%clk 0:03:01.9]} 10... Nxd4 {[%clk 0:02:44]} 11. Bxd4 {[%clk
0:03:02]} 11... Bf6 {[%clk 0:02:40.5]} 12. Bxd5 {[%clk 0:02:59.8]} 12... Qxd5
{[%clk 0:02:35.7]} 13. Bxf6 {[%clk 0:02:57.2]} 13... Qxd1 {[%clk 0:02:36.1]} 14.
Rxd1 {[%clk 0:02:58.1]} 14... gxf6 {[%clk 0:02:36.7]} 15. Nc3 {[%clk 0:02:58.9]}
15... b6 {[%clk 0:02:35]} 16. Rac1 {[%clk 0:02:56.4]} 16... Bb7 {[%clk 0:02:33]}
17. f3 {[%clk 0:02:56.1]} 17... Rad8 {[%clk 0:02:31.6]} 18. Kf2 {[%clk
0:02:55.6]} 18... f5 {[%clk 0:02:31.3]} 19. Nb5 {[%clk 0:02:55]} 19... Rxd1
{[%clk 0:02:27.1]} 20. Rxd1 {[%clk 0:02:55]} 20... Rc8 {[%clk 0:02:10.9]} 21.
Rd2 {[%clk 0:02:42.6]} 21... Ba6 {[%clk 0:02:08.4]} 22. Nd6 {[%clk 0:02:38.3]}
22... Rc1 {[%clk 0:02:05.9]} 23. h3 {[%clk 0:02:32.9]} 23... Kf8 {[%clk
0:02:04.1]} 24. g4 {[%clk 0:02:33]} 24... Ke7 {[%clk 0:02:03.9]} 25. gxf5 {[%clk
0:02:32.8]} 25... Rc6 {[%clk 0:01:54.4]} 26. Ne4 {[%clk 0:02:27.9]} 26... exf5
{[%clk 0:01:54]} 27. Ng3 {[%clk 0:02:28.5]} 27... Kf6 {[%clk 0:01:38.7]} 28. e3
{[%clk 0:02:23.2]} 28... Ke6 {[%clk 0:01:27.4]} 29. Nh5 {[%clk 0:02:23.1]} 29...
Rc1 {[%clk 0:01:25.1]} 30. Nf4+ {[%clk 0:02:21.9]} 30... Ke7 {[%clk 0:01:24.4]}
31. h4 {[%clk 0:02:21]} 31... Rh1 {[%clk 0:01:18]} 32. Kg3 {[%clk 0:02:19.6]}
32... Rg1+ {[%clk 0:01:16.4]} 33. Kh2 {[%clk 0:02:14.2]} 33... Re1 {[%clk
0:01:10.9]} 34. Nd5+ {[%clk 0:02:01.5]} 34... Kf8 {[%clk 0:01:06.4]} 35. Kg3
{[%clk 0:02:02]} 35... Bb7 {[%clk 0:01:05.3]} 36. Kf4 {[%clk 0:02:02.2]} 36...
Rh1 {[%clk 0:01:00.8]} 37. Kxf5 {[%clk 0:01:47.1]} 37... Bxd5 {[%clk 0:00:59.7]}
38. Rxd5 {[%clk 0:01:46.5]} 38... Rxh4 {[%clk 0:01:00.6]} 39. Rd7 {[%clk
0:01:43.5]} 39... Rh5+ {[%clk 0:00:42.2]} 40. Kf6 {[%clk 0:01:42.3]} 40... Rh6+
{[%clk 0:00:41.1]} 41. Kg5 {[%clk 0:01:42.8]} 41... Rg6+ {[%clk 0:00:41.2]} 42.
Kh4 {[%clk 0:01:23.8]} 42... a5 {[%clk 0:00:41]} 43. e4 {[%clk 0:01:22.7]} 43...
Rf6 {[%clk 0:00:27.9]} 44. Kg3 {[%clk 0:01:18.5]} 44... Rg6+ {[%clk 0:00:27.7]}
45. Kf4 {[%clk 0:01:15.1]} 45... h5 {[%clk 0:00:27]} 46. Rd5 {[%clk 0:01:15.1]}
46... Rg2 {[%clk 0:00:17.1]} 47. Rxh5 {[%clk 0:01:10.9]} 47... Rxa2 {[%clk
0:00:17.6]} 48. Rb5 {[%clk 0:01:11.5]} 48... a4 {[%clk 0:00:18]} 49. b4 {[%clk
0:01:08.2]} 49... a3 {[%clk 0:00:17.4]} 50. Rxb6 {[%clk 0:01:09.1]} 50... Rb2
{[%clk 0:00:18]} 51. Kf5 {[%clk 0:01:08.9]} 51... a2 {[%clk 0:00:17.7]} 52. Ra6
{[%clk 0:00:58.7]} 52... Kg7 {[%clk 0:00:17.2]} 53. f4 {[%clk 0:00:56.8]} 53...
Rxb4 {[%clk 0:00:11.2]} 54. Rxa2 {[%clk 0:00:56.7]} 54... Rb1 {[%clk 0:00:11.4]}
55. e5 {[%clk 0:00:55.9]} 55... Re1 {[%clk 0:00:10.8]} 56. Rg2+ {[%clk
0:00:54.5]} 56... Kf8 {[%clk 0:00:10.7]} 57. Kf6 {[%clk 0:00:54.9]} 57... Rf1
{[%clk 0:00:10]} 58. f5 {[%clk 0:00:54]} 58... Rh1 {[%clk 0:00:10.5]} 59. Ra2
{[%clk 0:00:47.7]} 59... Rh6+ {[%clk 0:00:10.8]} 60. Kg5 {[%clk 0:00:48.3]}
60... Rb6 {[%clk 0:00:10.9]} 61. Ra8+ {[%clk 0:00:47.1]} 61... Kg7 {[%clk
0:00:10.5]} 62. f6+ {[%clk 0:00:43]} 62... Kh7 {[%clk 0:00:10.6]} 63. Rf8 {[%clk
0:00:43.2]} 63... Rb7 {[%clk 0:00:10.8]} 64. Kf5 {[%clk 0:00:43.5]} 64... Ra7
{[%clk 0:00:11]} 65. Re8 {[%clk 0:00:43.7]} 65... Ra1 {[%clk 0:00:08.5]} 66. e6
{[%clk 0:00:36.2]} 66... Rf1+ {[%clk 0:00:08.4]} 67. Ke5 {[%clk 0:00:36.6]}
67... Re1+ {[%clk 0:00:05.5]} 68. Kd6 {[%clk 0:00:36.4]} 68... fxe6 {[%clk
0:00:05.3]} 69. f7 {[%clk 0:00:36.1]} 69... Rd1+ {[%clk 0:00:02.7]} 70. Ke7
{[%clk 0:00:35.6]} 70... Rf1 {[%clk 0:00:01.8]} 71. f8=Q {[%clk 0:00:35.5]} 1-0

[Event "*** Titled Tuesday Blitz"]
[Site "Chess.com"]
[Date "2020.11.03"]
[Round "6"]
[White "Kaua18"]
[Black "BlackBoarder"]
[Result "1-0"]
[WhiteElo "2341"]
[BlackElo "2540"]
[TimeControl "180+1"]
[EndTime "11:11:28 PST"]
[Termination "Kaua18 won by checkmate"]

1. e4 {[%clk 0:02:59.9]} 1... e6 {[%clk 0:02:53.5]} 2. d4 {[%clk 0:02:57.6]}
2... d5 {[%clk 0:02:53.7]} 3. Nd2 {[%clk 0:02:56.2]} 3... c5 {[%clk 0:02:53.7]}
4. exd5 {[%clk 0:02:54.1]} 4... Qxd5 {[%clk 0:02:54.6]} 5. Ngf3 {[%clk
0:02:50.5]} 5... cxd4 {[%clk 0:02:53.8]} 6. Bc4 {[%clk 0:02:50.2]} 6... Qd6
{[%clk 0:02:53.9]} 7. O-O {[%clk 0:02:47.9]} 7... Nf6 {[%clk 0:02:54.2]} 8. Nb3
{[%clk 0:02:48.2]} 8... Nc6 {[%clk 0:02:53.7]} 9. Re1 {[%clk 0:02:46.5]} 9... a6
{[%clk 0:02:44.7]} 10. Nbxd4 {[%clk 0:02:40.9]} 10... Nxd4 {[%clk 0:02:43.8]}
11. Qxd4 {[%clk 0:02:40.9]} 11... Qxd4 {[%clk 0:02:39.3]} 12. Nxd4 {[%clk
0:02:41.1]} 12... Bd7 {[%clk 0:02:40]} 13. Bg5 {[%clk 0:02:31.9]} 13... Rc8
{[%clk 0:02:36.5]} 14. Bb3 {[%clk 0:02:30.9]} 14... h6 {[%clk 0:02:32.6]} 15.
Bh4 {[%clk 0:02:29.3]} 15... Bc5 {[%clk 0:02:15.8]} 16. Rad1 {[%clk 0:02:25.8]}
16... O-O {[%clk 0:02:14.4]} 17. Nf5 {[%clk 0:02:16.5]} 17... exf5 {[%clk
0:02:00.3]} 18. Bxf6 {[%clk 0:02:13.4]} 18... Bc6 {[%clk 0:01:38.8]} 19. Be7
{[%clk 0:02:04.7]} 19... Bxe7 {[%clk 0:01:36.1]} 20. Rxe7 {[%clk 0:02:05.6]}
20... g6 {[%clk 0:01:06.4]} 21. h4 {[%clk 0:01:50.8]} 21... Kg7 {[%clk
0:01:05.1]} 22. h5 {[%clk 0:01:45.2]} 22... Rce8 {[%clk 0:01:00.8]} 23. Rde1
{[%clk 0:01:08.9]} 23... Kf6 {[%clk 0:00:59.8]} 24. R7e2 {[%clk 0:00:33.6]}
24... Rxe2 {[%clk 0:00:55.1]} 25. Rxe2 {[%clk 0:00:34.5]} 25... Re8 {[%clk
0:00:41.6]} 26. Rd2 {[%clk 0:00:29.3]} 26... Re1+ {[%clk 0:00:31.2]} 27. Kh2
{[%clk 0:00:28.5]} 27... Ke7 {[%clk 0:00:17.9]} 28. f3 {[%clk 0:00:16.1]} 28...
f4 {[%clk 0:00:15.4]} 29. Rd4 {[%clk 0:00:08.6]} 29... g5 {[%clk 0:00:15.3]} 30.
c3 {[%clk 0:00:08.4]} 30... Re2 {[%clk 0:00:12.9]} 31. Kh3 {[%clk 0:00:04.2]}
31... Rxb2 {[%clk 0:00:10.7]} 32. Rd1 {[%clk 0:00:02.5]} 32... Re2 {[%clk
0:00:07.8]} 33. Bd5 {[%clk 0:00:01.5]} 33... f5 {[%clk 0:00:05.5]} 34. Bxc6
{[%clk 0:00:01.5]} 34... bxc6 {[%clk 0:00:05.9]} 35. Rb1 {[%clk 0:00:02]} 35...
Rxa2 {[%clk 0:00:06]} 36. Rb7+ {[%clk 0:00:02.1]} 36... Ke6 {[%clk 0:00:04.9]}
37. Rh7 {[%clk 0:00:03]} 37... Ra1 {[%clk 0:00:03.3]} 38. Rxh6+ {[%clk
0:00:03.9]} 38... Kd5 {[%clk 0:00:03.4]} 39. Kh2 {[%clk 0:00:04.3]} 39... Re1
{[%clk 0:00:02.8]} 40. Rg6 {[%clk 0:00:04.8]} 40... Re8 {[%clk 0:00:02]} 41.
Rxg5 {[%clk 0:00:05.1]} 41... Ke5 {[%clk 0:00:02.6]} 42. Kh3 {[%clk 0:00:03.7]}
42... a5 {[%clk 0:00:02.7]} 43. Rg7 {[%clk 0:00:03.8]} 43... Ra8 {[%clk
0:00:02.2]} 44. h6 {[%clk 0:00:04.2]} 44... a4 {[%clk 0:00:02.6]} 45. h7 {[%clk
0:00:04.7]} 45... Rh8 {[%clk 0:00:02.1]} 46. Ra7 {[%clk 0:00:03.8]} 46... a3
{[%clk 0:00:02.3]} 47. Kh4 {[%clk 0:00:04.3]} 47... Kf6 {[%clk 0:00:01.6]} 48.
Kh5 {[%clk 0:00:03.5]} 48... a2 {[%clk 0:00:01.7]} 49. Kh6 {[%clk 0:00:03.7]}
49... Ke6 {[%clk 0:00:01.3]} 50. Rxa2 {[%clk 0:00:04.1]} 50... Kf6 {[%clk
0:00:01.2]} 51. Ra7 {[%clk 0:00:04.5]} 51... Rc8 {[%clk 0:00:01.3]} 52. Rg7
{[%clk 0:00:04.9]} 52... Rb8 {[%clk 0:00:01.2]} 53. Rg8 {[%clk 0:00:05.2]} 53...
Rb1 {[%clk 0:00:01.9]} 54. h8=Q+ {[%clk 0:00:05.7]} 54... Kf7 {[%clk 0:00:01.8]}
55. Qg7+ {[%clk 0:00:05.5]} 55... Ke6 {[%clk 0:00:02.1]} 56. Re8+ {[%clk
0:00:06]} 56... Kd5 {[%clk 0:00:02.7]} 57. Qd4# {[%clk 0:00:06.4]} 1-0

[Event "*** Titled Tuesday Blitz"]
[Site "Chess.com"]
[Date "2020.11.03"]
[Round "6"]
[White "gilbert_gm"]
[Black "Chessalary"]
[Result "1/2-1/2"]
[WhiteElo "2575"]
[BlackElo "2421"]
[TimeControl "180+1"]
[EndTime "11:11:34 PST"]
[Termination "Game drawn - insufficient material"]

1. e4 {[%clk 0:03:00.9]} 1... c6 {[%clk 0:02:58.5]} 2. Nc3 {[%clk 0:02:57.6]}
2... d5 {[%clk 0:02:56.1]} 3. Nf3 {[%clk 0:02:58.5]} 3... Bg4 {[%clk 0:02:55.5]}
4. h3 {[%clk 0:02:55.9]} 4... Bxf3 {[%clk 0:02:53.9]} 5. Qxf3 {[%clk 0:02:56.8]}
5... e6 {[%clk 0:02:53.1]} 6. d4 {[%clk 0:02:53.7]} 6... Nd7 {[%clk 0:02:52]} 7.
Be2 {[%clk 0:02:52.4]} 7... dxe4 {[%clk 0:02:52]} 8. Nxe4 {[%clk 0:02:53.3]}
8... Ngf6 {[%clk 0:02:52.1]} 9. c3 {[%clk 0:02:44.9]} 9... Nxe4 {[%clk
0:02:50.8]} 10. Qxe4 {[%clk 0:02:45.8]} 10... Nf6 {[%clk 0:02:51.2]} 11. Qc2
{[%clk 0:02:43.4]} 11... Be7 {[%clk 0:02:49.8]} 12. O-O {[%clk 0:02:43]} 12...
O-O {[%clk 0:02:48.6]} 13. a4 {[%clk 0:02:35.1]} 13... Qc7 {[%clk 0:02:47.1]}
14. g3 {[%clk 0:02:32.5]} 14... Rad8 {[%clk 0:02:41.1]} 15. Kg2 {[%clk
0:02:23.2]} 15... Rfe8 {[%clk 0:02:37.8]} 16. Bf4 {[%clk 0:02:21.7]} 16... Bd6
{[%clk 0:02:36.9]} 17. Bg5 {[%clk 0:02:21]} 17... Be7 {[%clk 0:02:33.2]} 18. Bf3
{[%clk 0:02:17.8]} 18... h6 {[%clk 0:02:31.8]} 19. Bf4 {[%clk 0:02:13.1]} 19...
Bd6 {[%clk 0:02:31.2]} 20. Bxd6 {[%clk 0:02:12.7]} 20... Qxd6 {[%clk 0:02:30.5]}
21. a5 {[%clk 0:02:09.5]} 21... a6 {[%clk 0:02:29.2]} 22. Qb3 {[%clk 0:02:05]}
22... Qc7 {[%clk 0:02:26.6]} 23. Rfe1 {[%clk 0:02:05.6]} 23... Nd7 {[%clk
0:02:19.8]} 24. Qc4 {[%clk 0:02:02]} 24... e5 {[%clk 0:02:18.6]} 25. d5 {[%clk
0:01:59.1]} 25... c5 {[%clk 0:02:04.3]} 26. d6 {[%clk 0:01:56.6]} 26... Qxd6
{[%clk 0:02:01.9]} 27. Bxb7 {[%clk 0:01:50.7]} 27... Rb8 {[%clk 0:02:01.1]} 28.
Rad1 {[%clk 0:01:39.9]} 28... Qc7 {[%clk 0:02:00.1]} 29. Bd5 {[%clk 0:01:37.9]}
29... Re7 {[%clk 0:01:55.5]} 30. b4 {[%clk 0:01:36.2]} 30... Qa7 {[%clk
0:01:54.1]} 31. Re2 {[%clk 0:01:00.4]} 31... cxb4 {[%clk 0:01:49.9]} 32. cxb4
{[%clk 0:01:01.3]} 32... Nf6 {[%clk 0:01:49.8]} 33. Red2 {[%clk 0:00:58.9]}
33... Rc7 {[%clk 0:01:42.6]} 34. Qh4 {[%clk 0:00:44.7]} 34... Rd7 {[%clk
0:01:33.2]} 35. Bf3 {[%clk 0:00:31.7]} 35... Rxd2 {[%clk 0:01:28.7]} 36. Rxd2
{[%clk 0:00:32.6]} 36... Qe7 {[%clk 0:01:25.5]} 37. Qc4 {[%clk 0:00:24]} 37...
Rxb4 {[%clk 0:00:59.2]} 38. Qxa6 {[%clk 0:00:18.4]} 38... e4 {[%clk 0:00:58.9]}
39. Be2 {[%clk 0:00:18.9]} 39... e3 {[%clk 0:00:58.8]} 40. fxe3 {[%clk
0:00:15.9]} 40... Qxe3 {[%clk 0:00:52.8]} 41. Rd8+ {[%clk 0:00:16]} 41... Kh7
{[%clk 0:00:46.4]} 42. Qd3+ {[%clk 0:00:15.5]} 42... Qxd3 {[%clk 0:00:47]} 43.
Bxd3+ {[%clk 0:00:16.4]} 43... g6 {[%clk 0:00:46.6]} 44. a6 {[%clk 0:00:17]}
44... Ra4 {[%clk 0:00:46.5]} 45. Rb8 {[%clk 0:00:12.9]} 45... Nd7 {[%clk
0:00:42.3]} 46. Bb5 {[%clk 0:00:07.7]} 46... Ra2+ {[%clk 0:00:41.9]} 47. Kf3
{[%clk 0:00:07.3]} 47... Nc5 {[%clk 0:00:42.5]} 48. Rb7 {[%clk 0:00:05.4]} 48...
Nxa6 {[%clk 0:00:35.8]} 49. Rxf7+ {[%clk 0:00:03.3]} 49... Kh8 {[%clk
0:00:35.4]} 50. Rf8+ {[%clk 0:00:02.9]} 50... Kg7 {[%clk 0:00:35.2]} 51. Ra8
{[%clk 0:00:02.6]} 51... Nb4 {[%clk 0:00:33.8]} 52. Rxa2 {[%clk 0:00:03.5]}
52... Nxa2 {[%clk 0:00:34.6]} 53. Bd3 {[%clk 0:00:03.5]} 53... Nc3 {[%clk
0:00:35.5]} 54. Be4 {[%clk 0:00:04]} 54... Kf6 {[%clk 0:00:36]} 55. Bb7 {[%clk
0:00:04.1]} 55... g5 {[%clk 0:00:36.4]} 56. Ke3 {[%clk 0:00:04.3]} 56... Ke5
{[%clk 0:00:36.9]} 57. Kd3 {[%clk 0:00:04.8]} 57... Nb5 {[%clk 0:00:37]} 58. Ke3
{[%clk 0:00:04.1]} 58... Nd4 {[%clk 0:00:37.3]} 59. Be4 {[%clk 0:00:03.8]} 59...
h5 {[%clk 0:00:36.9]} 60. Bg6 {[%clk 0:00:03.6]} 60... h4 {[%clk 0:00:36.6]} 61.
gxh4 {[%clk 0:00:04.2]} 61... gxh4 {[%clk 0:00:37.5]} 62. Bd3 {[%clk 0:00:04.6]}
62... Ne6 {[%clk 0:00:31.8]} 63. Kf3 {[%clk 0:00:03.5]} 63... Ng5+ {[%clk
0:00:31.6]} 64. Kg4 {[%clk 0:00:04]} 64... Nxh3 {[%clk 0:00:31.1]} 65. Kxh3
{[%clk 0:00:03.4]} 65... Kd4 {[%clk 0:00:29.9]} 66. Kxh4 {[%clk 0:00:04.3]}
1/2-1/2

[Event "*** Titled Tuesday Blitz"]
[Site "Chess.com"]
[Date "2020.11.03"]
[Round "6"]
[White "Brave_spirit12"]
[Black "Jenia84"]
[Result "1-0"]
[WhiteElo "2497"]
[BlackElo "2307"]
[TimeControl "180+1"]
[EndTime "11:11:37 PST"]
[Termination "Brave_spirit12 won on time"]

1. e4 {[%clk 0:03:00.9]} 1... e5 {[%clk 0:02:59.1]} 2. Nf3 {[%clk 0:03:00.9]}
2... Nc6 {[%clk 0:02:59.1]} 3. Bc4 {[%clk 0:03:01.4]} 3... Bc5 {[%clk
0:02:56.8]} 4. O-O {[%clk 0:03:01.8]} 4... Nf6 {[%clk 0:02:55.3]} 5. d4 {[%clk
0:03:01.7]} 5... Bxd4 {[%clk 0:02:54.2]} 6. Nxd4 {[%clk 0:03:01.2]} 6... Nxd4
{[%clk 0:02:54.2]} 7. Bg5 {[%clk 0:03:01.8]} 7... h6 {[%clk 0:02:49.5]} 8. Bh4
{[%clk 0:03:01.8]} 8... Ne6 {[%clk 0:02:45.2]} 9. Nc3 {[%clk 0:02:56.7]} 9... d6
{[%clk 0:02:43.1]} 10. Nd5 {[%clk 0:02:52.4]} 10... g5 {[%clk 0:02:39.6]} 11.
Bg3 {[%clk 0:02:50.2]} 11... Nxd5 {[%clk 0:02:15.9]} 12. Bxd5 {[%clk 0:02:47.9]}
12... Nf4 {[%clk 0:02:10.5]} 13. Re1 {[%clk 0:02:07.3]} 13... Qe7 {[%clk
0:02:07.5]} 14. Qd2 {[%clk 0:01:57.1]} 14... c6 {[%clk 0:01:49]} 15. Bb3 {[%clk
0:01:54.1]} 15... Be6 {[%clk 0:01:49.2]} 16. Rad1 {[%clk 0:01:51.3]} 16... O-O-O
{[%clk 0:01:46]} 17. Qa5 {[%clk 0:01:45.7]} 17... a6 {[%clk 0:01:33.2]} 18. f3
{[%clk 0:01:41.9]} 18... Qc7 {[%clk 0:01:31.6]} 19. Qc3 {[%clk 0:01:36]} 19...
Bxb3 {[%clk 0:01:26.1]} 20. axb3 {[%clk 0:01:33.7]} 20... f6 {[%clk 0:01:26.2]}
21. Bf2 {[%clk 0:01:33]} 21... d5 {[%clk 0:01:16.6]} 22. exd5 {[%clk 0:01:27.4]}
22... cxd5 {[%clk 0:00:57.1]} 23. Qb4 {[%clk 0:01:22.3]} 23... d4 {[%clk
0:00:55.6]} 24. c3 {[%clk 0:01:20.5]} 24... Nd5 {[%clk 0:00:51.9]} 25. Qa3
{[%clk 0:01:18.5]} 25... dxc3 {[%clk 0:00:49.5]} 26. bxc3 {[%clk 0:01:19.4]}
26... Kb8 {[%clk 0:00:36]} 27. c4 {[%clk 0:01:17.7]} 27... Nf4 {[%clk 0:00:36]}
28. Qb4 {[%clk 0:01:15.9]} 28... Rxd1 {[%clk 0:00:33.9]} 29. Rxd1 {[%clk
0:01:16.8]} 29... Rd8 {[%clk 0:00:33.6]} 30. Ra1 {[%clk 0:01:12.2]} 30... Qd6
{[%clk 0:00:30.6]} 31. Qa5 {[%clk 0:00:36.6]} 31... Ne2+ {[%clk 0:00:22.6]} 32.
Kf1 {[%clk 0:00:32.4]} 32... Qd3 {[%clk 0:00:20.1]} 33. Re1 {[%clk 0:00:16]}
33... Nd4+ {[%clk 0:00:16.1]} 34. Kg1 {[%clk 0:00:16]} 34... Nc6 {[%clk
0:00:14.5]} 35. Qb6 {[%clk 0:00:15.2]} 35... Qd2 {[%clk 0:00:12.7]} 36. Rf1
{[%clk 0:00:09.2]} 36... Kc8 {[%clk 0:00:12.2]} 37. h3 {[%clk 0:00:08.5]} 37...
Qd7 {[%clk 0:00:11.1]} 38. Ra1 {[%clk 0:00:06.7]} 38... Qc7 {[%clk 0:00:10.3]}
39. Qc5 {[%clk 0:00:06.8]} 39... Nd4 {[%clk 0:00:09.6]} 40. Qxc7+ {[%clk
0:00:04.3]} 40... Kxc7 {[%clk 0:00:09.5]} 41. b4 {[%clk 0:00:04.9]} 41... Kc6
{[%clk 0:00:09.7]} 42. Rb1 {[%clk 0:00:04.6]} 42... b5 {[%clk 0:00:09.5]} 43.
cxb5+ {[%clk 0:00:04.4]} 43... Kxb5 {[%clk 0:00:09]} 44. Kf1 {[%clk 0:00:04.6]}
44... Rc8 {[%clk 0:00:09.1]} 45. Ra1 {[%clk 0:00:04.7]} 45... Rc6 {[%clk
0:00:08]} 46. Be1 {[%clk 0:00:04]} 46... Nc2 {[%clk 0:00:07.3]} 47. Ra5+ {[%clk
0:00:04.4]} 47... Kb6 {[%clk 0:00:06.7]} 48. Bf2+ {[%clk 0:00:05]} 48... Nd4
{[%clk 0:00:06.4]} 49. g3 {[%clk 0:00:04.6]} 49... Rc1+ {[%clk 0:00:06.2]} 50.
Kg2 {[%clk 0:00:05.1]} 50... Rc2 {[%clk 0:00:06.6]} 51. Rd5 {[%clk 0:00:05.6]}
51... Kc6 {[%clk 0:00:04.1]} 52. Rd8 {[%clk 0:00:05.9]} 52... Kb5 {[%clk
0:00:04.2]} 53. Rb8+ {[%clk 0:00:05.6]} 53... Ka4 {[%clk 0:00:04.4]} 54. Rb6
{[%clk 0:00:05.1]} 54... Ne2 {[%clk 0:00:04.2]} 55. Rxa6+ {[%clk 0:00:05.2]}
55... Kxb4 {[%clk 0:00:03.3]} 56. Rxf6 {[%clk 0:00:06.1]} 56... Kc3 {[%clk
0:00:03.6]} 57. Rc6+ {[%clk 0:00:06]} 57... Kd2 {[%clk 0:00:04.1]} 58. Rxh6
{[%clk 0:00:06.7]} 58... Nd4 {[%clk 0:00:04.2]} 59. Rd6 {[%clk 0:00:07.1]} 59...
Kd1 {[%clk 0:00:04.5]} 60. g4 {[%clk 0:00:06.6]} 60... Rd2 {[%clk 0:00:03]} 61.
Kg3 {[%clk 0:00:06.2]} 61... Ke2 {[%clk 0:00:02.9]} 62. Bxd4 {[%clk 0:00:06]}
62... Rxd4 {[%clk 0:00:02.9]} 63. Re6 {[%clk 0:00:05.3]} 1-0